bitfinex-derivatives/quotes_ETHF0:USTF0_20250627
["timestamp","ask_amount","ask_price","bid_price","bid_amount"]
[1751066242811,11.603034,2421.5,2421.4,24.931]
[1751066243410,11.603034,2421.5,2421.3,0.82564]
[1751066243708,11.603034,2421.5,2421.3,25.75564]
[1751066244310,14.810834,2421.5,2421.3,25.75564]
[1751066245015,14.810834,2421.5,2421.4,0.82561]
[1751066245312,5.44837,2421.5,2421.4,0.82561]
[1751066246113,5.44837,2421.5,2421.3,25.75562]
[1751066246414,14.810834,2421.5,2421.3,25.75562]
[1751066247015,11.603034,2421.5,2421.3,25.75562]
[1751066247314,14.810834,2421.5,2421.3,25.75562]
[1751066248322,14.810834,2421.5,2421.4,0.82561]
[1751066251323,14.810834,2421.5,2421.3,25.75562]
[1751066252325,0.82561,2421.4,2421.3,25.75562]
[1751066253127,14.810854,2421.5,2421.3,25.75562]
[1751066253732,14.810854,2421.5,2421.4,0.82561]
[1751066254625,14.810854,2421.5,2421.3,25.75562]
[1751066254817,14.810854,2421.5,2421.4,0.82561]
[1751066256328,15.94520416,2421.5,2421.4,0.82561]
[1751066256526,14.53020416,2421.5,2421.4,0.82561]
[1751066260520,13.70461416,2421.5,2421.0,1.3616]
[1751066260721,3.00133488,2421.1,2420.9,3.2078]
[1751066261029,1.49134,2421.0,2420.9,3.2078]
[1751066261932,0.82579,2420.9,2420.8,24.928]
[1751066262327,1.49137,2421.0,2420.8,25.75381]
[1751066264328,1.49137,2421.0,2420.9,0.82578]
[1751066264529,0.6656,2421.0,2420.9,0.82578]
[1751066264730,0.6656,2421.0,2420.9,25.75478]
[1751066265232,10.028064,2421.0,2420.9,25.75478]
[1751066275441,9.362464,2421.0,2420.9,25.75478]
[1751066275643,9.362464,2421.0,2420.9,27.76398]
[1751066280545,9.362464,2421.0,2420.9,26.42568]
[1751066281748,9.362464,2421.0,2420.9,27.81428]
[1751066286342,9.362464,2421.0,2420.9,2.88528]
[1751066286542,10.49864823,2421.0,2420.6,3.2078]
[1751066286741,0.82585,2420.7,2420.3,3.9126]
[1751066287045,0.7019,2420.6,2420.5,0.82591]
[1751066287244,0.7019,2420.6,2420.4,28.75626488]
[1751066287445,0.7019,2420.6,2420.5,0.82591]
[1751066289542,0.7019,2420.6,2420.5,25.75491]
[1751066290248,10.064364,2420.6,2420.5,25.75491]
[1751066291152,9.362464,2420.6,2420.5,25.75491]
[1751066292546,9.362464,2420.6,2420.4,3.82727488]
[1751066292757,9.362464,2420.6,2420.5,24.93]
[1751066293451,10.716064,2420.6,2420.5,24.93]
[1751066294854,10.716064,2420.6,2420.5,0.82591]
[1751066295054,10.716064,2420.6,2420.5,25.75691]
[1751066295860,10.716064,2420.6,2420.4,0.82593]
[1751066296060,11.541954,2420.6,2420.5,24.931]
[1751066296451,10.716064,2420.6,2420.5,25.75691]
[1751066297261,11.541944,2420.6,2420.5,25.75691]
[1751066297460,11.541944,2420.6,2420.5,24.931]
[1751066297859,11.541944,2420.6,2420.3,0.82597]
[1751066298163,11.541944,2420.6,2420.4,24.931]
[1751066298660,0.82591,2420.5,2420.4,24.931]
[1751066298859,0.82591,2420.5,2420.3,0.82597]
[1751066299156,0.82599,2420.3,2420.1,15.21968373]
[1751066299467,0.82599,2420.3,2420.2,24.931]
[1751066299651,1.49579,2420.3,2420.1,8.86468373]
[1751066299851,1.49579,2420.3,2420.2,24.931]
[1751066300350,10.858254,2420.3,2420.2,24.932]
[1751066301057,10.032264,2420.3,2420.2,25.75802]
[1751066301253,10.858244,2420.3,2420.2,0.82602]
[1751066301457,10.032264,2420.3,2420.1,5.86335885]
[1751066301758,12.218644,2420.3,2420.2,24.932]
[1751066305563,0.82602,2420.2,2420.1,5.03731885]
[1751066305761,0.82602,2420.2,2420.1,29.97031885]
[1751066305962,0.82602,2420.2,2420.1,30.79636885]
[1751066306163,12.218674,2420.3,2420.1,30.79636885]
[1751066306467,10.858244,2420.3,2420.2,3.00133488]
[1751066309566,10.188444,2420.3,2420.2,3.00133488]
[1751066310070,2.0652,2420.1,2419.4,4.12302583]
[1751066310365,1.50841,2420.0,2419.6,3.82754488]
[1751066310557,0.6912,2419.9,2419.6,5.07193488]
[1751066310758,1.13220728,2419.8,2419.6,5.07193488]
[1751066310967,1.51734,2419.9,2419.6,5.07193488]
[1751066311160,1.51734,2419.9,2419.6,5.89814488]
[1751066311360,1.51734,2419.9,2419.6,5.07193488]
[1751066311862,0.6912,2419.9,2419.7,0.82617]
[1751066312163,0.6912,2419.9,2419.8,28.87948488]
[1751066312366,0.82607,2420.1,2419.9,0.8261]
[1751066312568,0.82607,2420.1,2419.8,28.87946488]
[1751066312569,1.9574396,2420.0,2419.8,28.87946488]
[1751066312866,0.6912,2420.1,2419.8,28.05333488]
[1751066313063,1.13130959,2420.0,2419.9,25.048]
[1751066313262,0.82615,2419.9,2419.8,25.048]
[1751066313460,4.03395,2419.9,2419.8,25.048]
[1751066314457,4.03395,2419.9,2419.7,0.7111]
[1751066314458,3.2078,2419.9,2419.7,0.7111]
[1751066314663,0.6903,2419.8,2419.7,26.58529]
[1751066315266,10.052764,2419.8,2419.7,26.58529]
[1751066315669,10.878914,2419.8,2419.7,26.58529]
[1751066316269,10.878914,2419.8,2419.7,25.7591]
[1751066316670,10.878914,2419.8,2419.7,26.58529]
[1751066316862,10.878914,2419.8,2419.7,25.7591]
[1751066320074,9.362464,2419.8,2419.7,26.58529]
[1751066320471,9.362464,2419.8,2419.7,27.92659]
[1751066323375,9.362464,2419.8,2419.7,27.1004]
[1751066323673,9.362464,2419.8,2419.7,27.92659]
[1751066326270,9.362464,2419.8,2419.7,32.92659]
[1751066327479,9.362464,2419.8,2419.7,27.92659]
[1751066331375,9.362464,2419.8,2419.7,27.90259]
[1751066333481,9.362464,2419.8,2419.7,2.87859]
[1751066333680,9.362464,2419.8,2419.7,27.89659]
[1751066339778,9.362464,2419.8,2419.7,36.10439]
[1751066344781,7.349144,2419.8,2419.7,36.10439]
[1751066344976,4.867094,2419.8,2419.7,36.10439]
[1751066345180,2.071544,2419.8,2419.7,36.10439]
[1751066345382,0.897184,2419.8,2419.7,36.10439]
[1751066345784,4e-06,2419.8,2419.7,36.10439]
[1751066349901,4e-06,2419.8,2419.7,32.89659]
[1751066350095,4e-06,2419.8,2419.7,36.10439]
[1751066352100,0.7189,2420.6,2420.5,0.82591]
[1751066352304,0.7189,2420.6,2420.5,32.03004488]
[1751066355202,10.081364,2420.6,2420.5,32.03004488]
[1751066357909,9.362464,2420.6,2420.5,32.03004488]
[1751066358203,9.362464,2420.6,2420.5,33.49194488]
[1751066358503,9.362464,2420.6,2420.5,38.41704488]
[1751066363308,9.362464,2420.6,2420.5,35.20924488]
[1751066370718,9.362464,2420.6,2420.5,35.18624488]
[1751066374122,9.362464,2420.6,2420.5,35.18224488]
[1751066377626,9.362464,2420.6,2420.5,37.36414488]
[1751066377821,9.362464,2420.6,2420.5,37.6919077]
[1751066378527,9.362464,2420.6,2420.5,37.36414488]
[1751066380125,9.362464,2420.6,2420.5,3.82724488]
[1751066380330,9.362464,2420.6,2420.5,10.19824488]
[1751066380531,9.362464,2420.6,2420.5,35.15324488]
[1751066381335,9.362464,2420.6,2420.5,10.19824488]
[1751066381529,9.362464,2420.6,2420.5,35.15224488]
[1751066398356,9.362464,2420.6,2420.5,0.82591]
[1751066398565,9.362464,2420.6,2420.5,6.371]
[1751066398857,9.362464,2420.6,2420.5,31.315]
[1751066399057,11.508264,2420.6,2420.5,31.315]
[1751066399257,11.508264,2420.6,2420.5,24.944]
[1751066399460,12.334164,2420.6,2420.5,24.944]
[1751066399862,11.508264,2420.6,2420.5,25.76991]
[1751066403462,12.64392287,2420.6,2420.5,25.76991]
[1751066405567,12.64392287,2420.6,2420.5,25.77191]
[1751066407470,12.64392287,2420.6,2420.5,24.946]
[1751066407967,12.64392287,2420.6,2420.5,25.77191]
[1751066408167,10.49812287,2420.6,2420.5,25.77191]
[1751066408368,9.362464,2420.6,2420.5,25.77191]
[1751066408970,9.362464,2420.6,2420.3,7.19696]
[1751066409162,13.18969888,2420.6,2420.4,24.946]
[1751066409362,2.29881,2420.5,2420.4,24.946]
[1751066410168,11.661274,2420.5,2420.4,24.946]
[1751066410568,0.82595,2420.4,2420.2,10.3968]
[1751066410758,0.82595,2420.4,2420.3,24.946]
[1751066411670,14.869104,2420.5,2420.3,25.77197]
[1751066412369,0.82595,2420.4,2420.3,24.946]
[1751066412671,0.82595,2420.4,2420.3,25.77198]
[1751066412872,14.869094,2420.5,2420.3,25.77198]
[1751066413372,0.82595,2420.4,2420.3,25.77198]
[1751066414573,0.82595,2420.4,2420.3,24.946]
[1751066414773,0.82595,2420.4,2420.3,25.77198]
[1751066415377,9.362464,2420.4,2420.3,25.77198]
[1751066418178,9.362464,2420.4,2420.3,24.946]
[1751066418366,9.362464,2420.4,2420.0,3.00133488]
[1751066418571,13.78949888,2420.4,2420.1,24.947]
[1751066418771,0.82602,2420.2,2420.1,24.947]
[1751066418972,6.95671193,2420.2,2420.1,24.947]
[1751066419174,5.82532,2420.2,2420.1,24.947]
[1751066419575,6.54862,2420.2,2420.1,24.947]
[1751066420177,15.911084,2420.2,2420.1,24.947]
[1751066420881,0.82606,2420.1,2419.9,4.03392]
[1751066421179,0.82606,2420.1,2420.0,24.949]
[1751066422575,15.085064,2420.2,2420.1,0.82605]
[1751066424082,15.085064,2420.2,2420.0,25.77506]
[1751066424879,19.118884,2420.2,2420.0,25.77506]
[1751066425276,9.362464,2420.1,2420.0,25.77506]
[1751066425476,10.188514,2420.1,2420.0,24.949]
[1751066426583,9.362464,2420.1,2420.0,24.949]
[1751066427375,9.362464,2420.1,2420.0,27.23778]
[1751066427777,9.362464,2420.1,2420.0,30.44558]
[1751066428786,9.362464,2420.1,2420.0,36.80958]
[1751066432687,9.362464,2420.1,2420.0,41.80958]
[1751066433388,9.362464,2420.1,2420.0,36.80958]
[1751066445199,9.362464,2420.1,2420.0,36.80758]
[1751066454819,9.362464,2420.1,2420.0,33.59978]
[1751066455016,9.362464,2420.1,2420.0,36.80758]
[1751066455914,9.362464,2420.1,2420.0,33.59978]
[1751066456219,9.362464,2420.1,2420.0,36.80758]
[1751066456717,9.362464,2420.1,2420.0,35.34488]
[1751066456917,9.362464,2420.1,2420.0,32.13708]
[1751066457106,9.362464,2420.1,2420.0,35.34488]
[1751066462625,9.362464,2420.1,2420.0,37.44702483]
[1751066466532,9.362464,2420.1,2420.0,4.03388]
[1751066466732,9.362464,2420.1,2420.0,25.77208]
[1751066467534,11.502764,2420.1,2420.0,25.77208]
[1751066467738,10.054464,2420.1,2420.0,25.77208]
[1751066467930,10.054464,2420.1,2420.0,28.97988]
[1751066469536,10.054464,2420.1,2420.0,4.03388]
[1751066469738,11.502764,2420.1,2420.0,37.44402483]
[1751066472042,11.502764,2420.1,2420.0,0.82608]
[1751066472340,10.054464,2420.1,2420.0,25.77908]
[1751066472741,11.487064,2420.1,2420.0,25.77908]
[1751066473239,10.054464,2420.1,2420.0,25.77908]
[1751066478254,10.054464,2420.1,2420.0,0.82608]
[1751066478452,10.054464,2420.1,2420.0,25.80208]
[1751066488159,9.362464,2420.1,2420.0,25.80208]
[1751066489458,9.362464,2420.1,2420.0,27.13698]
[1751066489758,9.362464,2420.1,2420.0,25.80208]
[1751066493150,9.362464,2420.1,2420.0,27.19028]
[1751066495262,9.362464,2420.1,2420.0,30.39808]
[1751066496364,9.362464,2420.1,2420.0,33.40175084]
[1751066496563,9.362464,2420.1,2420.0,32.01355084]
[1751066497059,9.362464,2420.1,2420.0,38.36455084]
[1751066498963,9.362464,2420.1,2420.0,35.15675084]
[1751066503165,9.362464,2420.1,2420.0,3.82975084]
[1751066503363,9.362464,2420.1,2420.0,25.78308]
[1751066507968,9.362464,2420.1,2420.0,0.82608]
[1751066508174,9.362464,2420.1,2420.0,25.77808]
[1751066508773,11.1765379,2420.1,2420.0,25.77808]
[1751066509773,11.1765379,2420.1,2420.0,25.77708]
[1751066510477,10.042364,2420.1,2420.0,25.77708]
[1751066511981,10.042364,2420.1,2420.0,0.82608]
[1751066512177,10.042364,2420.1,2420.0,25.77708]
[1751066514881,10.042364,2420.1,2420.0,0.82608]
[1751066515077,10.042364,2420.1,2420.0,25.77708]
[1751066515277,10.042364,2420.1,2420.0,0.82608]
[1751066515476,10.042364,2420.1,2420.0,25.77708]
[1751066517383,10.868414,2420.1,2419.9,0.82611]
[1751066517584,10.868414,2420.1,2420.0,24.951]
[1751066518886,10.042364,2420.1,2420.0,25.77708]
[1751066519083,10.042364,2420.1,2420.0,0.82608]
[1751066519286,10.868414,2420.1,2420.0,25.77708]
[1751066519486,10.042364,2420.1,2420.0,25.77708]
[1751066520288,10.868414,2420.1,2420.0,24.951]
[1751066520483,10.042364,2420.1,2420.0,25.77708]
[1751066521687,10.042364,2420.1,2420.0,0.82608]
[1751066521888,10.042364,2420.1,2420.0,25.77708]
[1751066522589,10.042364,2420.1,2420.0,0.82608]
[1751066522787,10.042364,2420.1,2420.0,25.77708]
[1751066522988,10.042364,2420.1,2420.0,0.82608]
[1751066523397,10.042364,2420.1,2420.0,25.77708]
[1751066524294,10.042364,2420.1,2420.0,0.82608]
[1751066524696,10.042364,2420.1,2420.0,25.77708]
[1751066525504,18.04639476,2420.1,2419.7,0.82619]
[1751066525707,0.82616,2419.8,2419.6,7.1942]
[1751066525902,0.82616,2419.8,2419.6,0.8262]
[1751066526107,0.6784,2419.7,2419.4,6.368]
[1751066526403,0.82624,2419.6,2419.4,6.368]
[1751066526604,5.31267461,2419.5,2419.1,4.12302583]
[1751066526907,0.82641,2419.1,2419.0,24.997]
[1751066527308,1.49679,2419.1,2419.0,24.996]
[1751066528303,0.82644,2419.0,2418.7,3.65138461]
[1751066528504,5.31267461,2418.9,2418.8,24.999]
[1751066528697,3.2078,2418.9,2418.8,25.82549]
[1751066528901,3.2078,2418.9,2418.8,24.999]
[1751066529301,4.03427,2418.9,2418.8,24.999]
[1751066529911,4.03426,2418.9,2418.8,24.999]
[1751066530105,3.2078,2418.9,2418.8,24.999]
[1751066530307,13.396734,2418.9,2418.8,24.997]
[1751066530908,12.570264,2418.9,2418.8,25.82349]
[1751066531611,12.570264,2418.9,2418.8,24.997]
[1751066532212,12.570264,2418.9,2418.5,3.00729584]
[1751066532405,0.6748,2418.8,2418.4,0.82663]
[1751066532707,3.00729584,2418.7,2418.3,3.2078]
[1751066532911,0.82665,2418.4,2418.2,25.004]
[1751066533100,0.6735,2418.3,2418.2,25.013]
[1751066533298,4.70798,2418.3,2418.1,0.6635]
[1751066533498,3.8813,2418.3,2418.2,25.013]
[1751066534504,3.8813,2418.3,2418.2,25.8397]
[1751066535307,13.243764,2418.3,2418.2,25.8397]
[1751066537207,13.243764,2418.3,2418.2,25.013]
[1751066537413,13.243764,2418.3,2418.2,25.8397]
[1751066537713,13.243764,2418.3,2418.2,25.013]
[1751066537914,13.243764,2418.3,2418.2,25.8397]
[1751066538116,13.243764,2418.3,2418.2,25.013]
[1751066539916,13.243764,2418.3,2418.2,25.8397]
[1751066540110,12.570264,2418.3,2418.2,28.84699584]
[1751066543017,9.362464,2418.3,2418.2,28.84699584]
[1751066544214,9.362464,2418.3,2418.2,30.31839584]
[1751066549523,9.362464,2418.3,2418.2,25.8467]
[1751066550724,9.362464,2418.3,2418.2,27.2166]
[1751066552521,9.362464,2418.3,2418.2,2.1966]
[1751066552723,9.362464,2418.3,2418.2,27.2156]
[1751066555229,9.362464,2418.3,2418.2,27.2126]
[1751066559631,9.362464,2418.3,2418.2,2.1966]
[1751066559823,9.362464,2418.3,2418.2,25.8347]
[1751066561837,9.362464,2418.3,2418.1,0.07196766]
[1751066562135,9.362464,2418.3,2417.9,6.21509584]
[1751066562136,0.7191,2418.2,2418.0,0.82675]
[1751066562335,0.7191,2418.2,2418.1,25.004]
[1751066562634,0.7191,2418.2,2418.1,25.83073]
[1751066562835,0.7191,2418.2,2417.9,3.2078]
[1751066563037,3.00729584,2418.0,2417.6,4.12302583]
[1751066563340,3.2078,2417.7,2417.4,0.82696]
[1751066563532,0.7006,2417.6,2417.5,25.076]
[1751066564335,0.7006,2417.6,2417.5,25.90294]
[1751066565133,10.063064,2417.6,2417.5,25.90294]
[1751066565632,10.063064,2417.6,2417.5,28.91023584]
[1751066566039,9.362464,2417.6,2417.5,28.91023584]
[1751066566537,9.362464,2417.6,2417.5,28.90523584]
[1751066567527,9.362464,2417.6,2417.5,31.01643584]
[1751066567729,9.362464,2417.6,2417.5,30.33403584]
[1751066567928,9.362464,2417.6,2417.5,28.90523584]
[1751066570942,9.362464,2417.6,2417.5,25.074]
[1751066571141,9.362464,2417.6,2417.4,3.83424584]
[1751066571334,9.362464,2417.6,2417.5,25.074]
[1751066571530,9.362464,2417.6,2417.5,25.90094]
[1751066572235,9.362464,2417.6,2417.5,25.074]
[1751066572436,9.362464,2417.6,2417.5,25.90094]
[1751066572637,9.362464,2417.6,2417.3,3.00729584]
[1751066572842,9.362464,2417.6,2417.5,0.82694]
[1751066573237,9.362464,2417.6,2417.5,3.83423584]
[1751066573431,9.362464,2417.6,2417.5,3.00729584]
[1751066573637,9.362464,2417.6,2417.5,3.83423584]
[1751066575245,9.362464,2417.6,2417.5,3.00729584]
[1751066575545,9.362464,2417.6,2417.5,3.83423584]
[1751066579745,9.362464,2417.6,2417.5,0.82694]
[1751066580943,9.362464,2417.6,2417.5,4.03474]
[1751066581144,9.362464,2417.6,2417.5,5.43534]
[1751066586549,9.362464,2417.6,2417.5,10.43534]
[1751066589452,9.362464,2417.6,2417.5,5.43534]
[1751066589952,7.439974,2417.6,2417.5,10.43534]
[1751066590457,6.532164,2417.6,2417.5,5.43534]
[1751066590649,5.545774,2417.6,2417.5,5.43534]
[1751066590844,3.441814,2417.6,2417.5,10.43534]
[1751066591049,2.477234,2417.6,2417.5,10.43534]
[1751066591345,1.452614,2417.6,2417.5,10.43534]
[1751066591550,0.423984,2417.6,2417.5,10.43534]
[1751066591755,4e-06,2417.6,2417.5,10.43534]
[1751066592358,4e-06,2417.6,2417.5,5.43534]
[1751066594357,4e-06,2417.6,2417.5,10.43534]
[1751066603661,4e-06,2417.6,2417.5,14.55836583]
[1751066604359,4e-06,2417.6,2417.5,9.55836583]
[1751066604563,4e-06,2417.6,2417.5,14.55836583]
[1751066605766,4e-06,2417.6,2417.5,15.23336583]
[1751066608163,4e-06,2417.6,2417.5,22.08936583]
[1751066608370,4e-06,2417.6,2417.5,15.23336583]
[1751066609371,4.9993,2418.8,2418.7,0.82653]
[1751066609572,2.1696,2419.1,2418.7,38.48860584]
[1751066609765,2.6170647,2419.0,2418.9,0.82646]
[1751066610069,2.6170647,2419.0,2418.9,25.86946]
[1751066610070,7.6170647,2419.0,2418.9,25.86946]
[1751066610373,0.7018,2419.1,2418.9,25.86946]
[1751066610374,0.7018,2419.1,2419.0,0.82642]
[1751066610677,4.9993,2419.8,2419.5,0.82624]
[1751066610867,1.14899193,2419.7,2419.6,25.072]
[1751066611373,6.14899193,2419.7,2419.6,25.072]
[1751066611572,8.61030163,2419.7,2419.2,6.409]
[1751066611784,4.15628777,2419.6,2419.4,25.07]
[1751066612068,1.14899193,2419.5,2419.4,25.07]
[1751066612570,6.85269193,2419.5,2419.4,25.07]
[1751066613568,8.28399193,2419.5,2419.4,25.89629]
[1751066613769,8.99219193,2419.5,2419.4,25.89629]
[1751066614173,7.8432,2419.5,2419.4,25.89629]
[1751066615276,17.205664,2419.5,2419.4,25.89629]
[1751066615572,17.205664,2419.5,2419.4,25.07]
[1751066616173,18.031934,2419.5,2419.3,25.067]
[1751066616374,18.031934,2419.5,2419.0,4.03421]
[1751066616375,4.43859584,2419.4,2419.1,25.067]
[1751066616570,3.83365584,2419.2,2419.1,25.067]
[1751066616770,2.23064,2419.3,2419.1,25.067]
[1751066617072,7.23064,2419.3,2419.1,25.067]
[1751066617272,1.4043,2419.2,2419.1,25.067]
[1751066617571,1.4043,2419.2,2419.0,4.03422]
[1751066617776,1.4043,2419.2,2419.0,29.11222]
[1751066617777,0.6768,2419.1,2419.0,29.11222]
[1751066618176,7.0811,2419.1,2419.0,29.11222]
[1751066620170,16.443564,2419.1,2419.0,29.11222]
[1751066620378,11.443564,2419.1,2419.0,29.11222]
[1751066624880,10.039264,2419.1,2419.0,29.11222]
[1751066626677,10.039264,2419.1,2419.0,35.53722]
[1751066629483,10.039264,2419.1,2419.0,4.03422]
[1751066629686,10.039264,2419.1,2419.0,35.52522]
[1751066633979,10.039264,2419.1,2419.0,36.22262]
[1751066636494,10.039264,2419.1,2419.0,35.52522]
[1751066638988,9.362464,2419.1,2419.0,38.53251584]
[1751066645598,9.362464,2419.1,2419.0,39.24751584]
[1751066655002,9.362464,2419.1,2419.0,14.18151584]
[1751066655207,9.362464,2419.1,2419.0,39.20651584]
[1751066665812,9.362464,2419.1,2419.0,35.99871584]
[1751066666015,9.362464,2419.1,2419.0,39.20651584]
[1751066667310,14.362464,2419.1,2419.0,3.2078]
[1751066667516,9.362464,2419.1,2419.0,25.83842]
[1751066670515,10.723464,2419.1,2419.0,25.83842]
[1751066674123,10.723464,2419.1,2419.0,0.82642]
[1751066674324,10.723464,2419.1,2419.0,25.84342]
[1751066677814,18.73075984,2419.1,2418.6,4.03433]
[1751066678020,7.04159584,2418.8,2418.4,7.23061]
[1751066678324,3.00253,2418.7,2418.5,25.026]
[1751066678523,1.4559,2418.6,2418.5,25.026]
[1751066678719,1.4559,2418.6,2418.5,25.85259]
[1751066679123,1.4559,2418.6,2418.5,0.82659]
[1751066679320,0.7201,2418.7,2418.6,0.82656]
[1751066679626,0.7201,2418.7,2418.6,25.85556]
[1751066680229,10.082564,2418.7,2418.6,25.85556]
[1751066683830,10.082564,2418.7,2418.6,25.029]
[1751066685523,10.082564,2418.7,2418.6,25.85556]
[1751066686334,9.362464,2418.7,2418.6,25.85556]
[1751066686733,9.362464,2418.7,2418.6,25.029]
[1751066687328,10.188994,2418.7,2418.6,25.029]
[1751066687530,11.582994,2418.7,2418.6,25.029]
[1751066688636,11.582994,2418.7,2418.6,25.85556]
[1751066688831,11.582994,2418.7,2418.6,25.029]
[1751066689339,10.756464,2418.7,2418.6,25.85556]
[1751066689640,11.582994,2418.7,2418.6,25.029]
[1751066689830,11.582994,2418.7,2418.5,25.84957]
[1751066690036,11.582994,2418.7,2418.6,25.023]
[1751066690236,9.362464,2418.6,2418.5,25.023]
[1751066690541,0.82661,2418.5,2418.4,25.023]
[1751066690736,2.18301,2418.5,2418.4,25.023]
[1751066690934,2.18301,2418.5,2418.3,0.82665]
[1751066691135,2.18301,2418.5,2418.3,25.84965]
[1751066691939,1.3564,2418.5,2418.4,0.82663]
[1751066692338,2.183,2418.5,2418.3,25.84965]
[1751066693139,1.3564,2418.5,2418.4,0.82663]
[1751066693439,10.923644,2418.6,2418.4,0.82663]
[1751066694440,4.03439,2418.5,2418.3,25.84965]
[1751066694835,0.82659,2418.5,2418.3,25.84965]
[1751066695035,4.03439,2418.5,2418.3,25.84965]
[1751066695239,9.362464,2418.4,2418.3,25.84965]
[1751066695440,10.189094,2418.4,2418.3,25.84965]
[1751066695642,9.362464,2418.4,2418.3,25.84965]
[1751066697242,10.189094,2418.4,2418.3,25.023]
[1751066697841,10.907994,2418.4,2418.3,25.023]
[1751066698843,0.82666,2418.3,2418.2,9.41129584]
[1751066699037,0.82666,2418.3,2418.2,34.42329584]
[1751066699236,10.908014,2418.4,2418.2,28.84599584]
[1751066699432,10.081364,2418.4,2418.3,0.82666]
[1751066699645,10.907994,2418.4,2418.3,0.82666]
[1751066699844,10.907994,2418.4,2418.2,28.84597584]
[1751066700142,9.362464,2418.3,2418.2,28.84597584]
[1751066700336,9.362464,2418.3,2418.2,25.8427]
[1751066700536,9.362464,2418.3,2418.2,25.8407]
[1751066700937,14.361764,2418.3,2418.2,25.014]
[1751066701842,14.361764,2418.3,2418.2,25.8407]
[1751066702740,15.188424,2418.3,2418.2,25.014]
[1751066703340,14.361764,2418.3,2418.2,25.014]
[1751066703643,14.361764,2418.3,2418.2,25.8407]
[1751066703949,14.361764,2418.3,2418.1,0.697]
[1751066704139,14.361764,2418.3,2418.2,25.008]
[1751066704337,15.188424,2418.3,2418.2,25.008]
[1751066705245,14.361764,2418.3,2417.9,9.6098]
[1751066705546,0.82677,2418.0,2417.9,28.2138]
[1751066706842,0.82677,2418.0,2417.8,0.82682]
[1751066707047,0.82677,2418.0,2417.9,25.006]
[1751066707347,3.00729584,2418.0,2417.6,2.6824]
[1751066707550,0.8268,2417.9,2417.7,3.83413584]
[1751066707746,4.9993,2418.0,2417.9,0.8268]
[1751066708049,4.9993,2418.0,2417.9,3.83409584]
[1751066708442,4.9993,2418.0,2417.9,3.71909584]
[1751066708647,4.9993,2418.0,2417.9,4.54589584]
[1751066708842,4.9993,2418.0,2417.9,5.92139584]
[1751066709347,5.82607,2418.0,2417.9,5.09459584]
[1751066709548,4.9993,2418.0,2417.9,30.94939584]
[1751066710242,14.361764,2418.0,2417.9,30.94939584]
[1751066710557,9.362464,2418.0,2417.9,30.94939584]
[1751066743983,9.362464,2418.0,2417.9,42.34839584]
[1751066745490,9.362464,2418.0,2417.9,42.32539584]
[1751066745788,9.362464,2418.0,2417.9,10.92139584]
[1751066745988,9.362464,2418.0,2417.9,42.32439584]
[1751066747186,9.362464,2418.0,2417.9,25.8308]
[1751066747388,9.362464,2418.0,2417.9,28.83809584]
[1751066747588,9.362464,2418.0,2417.9,30.23069584]
[1751066747983,9.362464,2418.0,2417.9,36.61869584]
[1751066750887,9.362464,2418.0,2417.9,39.82649584]
[1751066753190,9.362464,2418.0,2417.9,36.61869584]
[1751066753392,9.362464,2418.0,2417.9,39.82649584]
[1751066760998,9.362464,2418.0,2417.9,39.84349584]
[1751066764204,9.362464,2418.0,2417.9,4.0346]
[1751066764406,9.362464,2418.0,2417.9,32.05389584]
[1751066766706,9.362464,2418.0,2417.9,38.44089584]
[1751066768303,9.362464,2418.0,2417.9,9.5948]
[1751066768607,9.362464,2418.0,2417.9,35.5076]
[1751066769805,9.362464,2418.0,2417.9,38.51489584]
[1751066772812,9.362464,2418.0,2417.9,7.04189584]
[1751066773011,10.774264,2418.0,2417.9,32.12389584]
[1751066775712,8.461744,2418.0,2417.9,32.12389584]
[1751066776607,8.461744,2418.0,2417.9,31.22216821]
[1751066777106,8.461744,2418.0,2417.9,34.11446821]
[1751066777301,4.9993,2418.6,2418.5,0.8266]
[1751066777506,4.9993,2418.6,2418.5,28.01616821]
[1751066777713,4.9993,2418.6,2418.5,30.12173642]
[1751066778014,0.6811,2418.7,2418.6,0.82656]
[1751066778610,0.6811,2418.7,2418.6,3.83343159]
[1751066779710,0.6811,2418.7,2418.6,0.82656]
[1751066780315,2.058,2418.7,2418.6,0.82656]
[1751066780516,11.420464,2418.7,2418.6,0.82656]
[1751066784924,11.420464,2418.7,2418.5,25.084]
[1751066785221,9.362464,2418.6,2418.5,25.91057]
[1751066786126,14.362464,2418.6,2418.3,3.2078]
[1751066786425,9.11307159,2418.5,2418.4,25.095]
[1751066786623,9.11307159,2418.5,2418.0,3.2078]
[1751066786624,0.82663,2418.4,2418.1,0.82671]
[1751066786825,2.21363,2418.4,2418.2,25.096]
[1751066787026,0.7273,2418.3,2418.2,25.096]
[1751066787326,2.1068,2418.3,2418.2,25.9227]
[1751066790229,11.469264,2418.3,2418.2,0.8267]
[1751066790429,11.469264,2418.3,2418.2,25.9207]
[1751066790731,11.469264,2418.3,2418.2,25.094]
[1751066791230,11.469264,2418.3,2418.2,25.091]
[1751066791432,0.8267,2418.2,2417.9,0.82679]
[1751066791635,0.8267,2418.2,2418.0,25.088]
[1751066791829,0.8267,2418.2,2417.9,0.82679]
[1751066792135,4.0345,2418.2,2418.0,25.087]
[1751066793039,9.0338,2418.2,2418.0,25.91376]
[1751066793238,9.0338,2418.2,2418.0,25.087]
[1751066793437,0.82673,2418.1,2418.0,25.087]